[Event "FIDE Grand Swiss 2023"]
[Site "Villa Marina, Douglas, Isle of Man, Isle Of Man"]
[Date "2023.11.05"]
[Round "11.28"]
[White "Amin, Bassem"]
[Black "Jumabayev, Rinat"]
[Result "1-0"]
[TimeControl "40/90 + 30 + 30s/move"]
[WhiteFideId "10601457"]
[BlackFideId "13702661"]
[WhiteElo "2680"]
[BlackElo "2585"]

1. e4 {[%clk 01:39:18]} {[%emt 00:01:42]} e5 {[%clk 01:40:11]} {[%emt
00:00:50]} 2. Nf3 {[%clk 01:39:23]} {[%emt 00:00:15]} Nc6 {[%clk 01:40:38]}
{[%emt 00:00:12]} 3. d4 {[%clk 01:38:26]} {[%emt 00:01:27]} exd4 {[%clk
01:41:03]} {[%emt 00:00:06]} 4. Nxd4 {[%clk 01:38:50]} {[%emt 00:00:06]} Nf6
{[%clk 01:41:05]} {[%emt 00:00:27]} 5. Nxc6 {[%clk 01:36:49]} {[%emt 00:02:32]}
bxc6 {[%clk 01:41:30]} {[%emt 00:00:05]} 6. e5 {[%clk 01:37:13]} {[%emt
00:00:06]} Qe7 {[%clk 01:41:57]} {[%emt 00:00:03]} 7. Qe2 {[%clk 01:37:36]}
{[%emt 00:00:07]} Nd5 {[%clk 01:42:21]} {[%emt 00:00:05]} 8. h4 {[%clk
01:37:51]} {[%emt 00:00:15]} a5 {[%clk 01:35:37]} {[%emt 00:07:15]} 9. c4
{[%clk 01:36:49]} {[%emt 00:01:32]} Ba6 {[%clk 01:28:57]} {[%emt 00:07:09]} 10.
Nd2 {[%clk 01:33:00]} {[%emt 00:04:19]} Nb6 {[%clk 01:08:34]} {[%emt 00:20:53]}
11. b3 {[%clk 01:30:19]} {[%emt 00:03:11]} a4 {[%clk 01:07:31]} {[%emt
00:01:34]} 12. Bb2 {[%clk 01:30:42]} {[%emt 00:00:07]} Bb7 {[%clk 01:06:52]}
{[%emt 00:01:09]} 13. O-O-O {[%clk 01:22:02]} {[%emt 00:09:09]} axb3 {[%clk
01:06:40]} {[%emt 00:00:43]} 14. axb3 {[%clk 01:22:26]} {[%emt 00:00:05]} Qe6
{[%clk 00:47:35]} {[%emt 00:19:35]} 15. Ne4 {[%clk 00:40:46]} {[%emt 00:42:10]}
Ba3 {[%clk 00:39:35]} {[%emt 00:08:31]} 16. Bxa3 {[%clk 00:39:47]} {[%emt
00:01:28]} Rxa3 {[%clk 00:40:03]} {[%emt 00:00:02]} 17. Qb2 {[%clk 00:40:01]}
{[%emt 00:00:16]} Ra5 {[%clk 00:38:43]} {[%emt 00:01:50]} 18. Bd3 {[%clk
00:38:38]} {[%emt 00:01:53]} Qxe5 {[%clk 00:30:03]} {[%emt 00:09:10]} 19. c5
{[%clk 00:37:51]} {[%emt 00:01:18]} Qxb2+ {[%clk 00:27:10]} {[%emt 00:03:23]}
20. Kxb2 {[%clk 00:38:02]} {[%emt 00:00:19]} Nd5 {[%clk 00:27:18]} {[%emt
00:00:21]} 21. Ng5 {[%clk 00:30:59]} {[%emt 00:07:33]} O-O {[%clk 00:21:38]}
{[%emt 00:06:10]} 22. Bxh7+ {[%clk 00:30:54]} {[%emt 00:00:35]} Kh8 {[%clk
00:22:05]} {[%emt 00:00:03]} 23. Bf5 {[%clk 00:30:56]} {[%emt 00:00:27]} Rxc5
{[%clk 00:21:50]} {[%emt 00:00:46]} 24. Bxd7 {[%clk 00:30:44]} {[%emt
00:00:43]} Nb4 {[%clk 00:20:32]} {[%emt 00:01:48]} 25. Rd4 {[%clk 00:26:30]}
{[%emt 00:04:44]} Rb5 {[%clk 00:15:38]} {[%emt 00:05:24]} 26. Rc1 {[%clk
00:24:02]} {[%emt 00:02:57]} Rb6 {[%clk 00:10:41]} {[%emt 00:05:28]} 27. Bf5
{[%clk 00:19:24]} {[%emt 00:05:07]} g6 {[%clk 00:10:06]} {[%emt 00:01:06]} 28.
Be4 {[%clk 00:18:41]} {[%emt 00:01:12]} c5 {[%clk 00:06:24]} {[%emt 00:04:13]}
29. Rxc5 {[%clk 00:14:27]} {[%emt 00:04:44]} Bxe4 {[%clk 00:06:46]} {[%emt
00:00:08]} 30. Nxe4 {[%clk 00:14:48]} {[%emt 00:00:09]} c6 {[%clk 00:07:04]}
{[%emt 00:00:12]} 31. Nd6 {[%clk 00:10:53]} {[%emt 00:04:24]} Kg7 {[%clk
00:05:17]} {[%emt 00:02:17]} 32. Nc4 {[%clk 00:09:11]} {[%emt 00:02:13]} Rb7
{[%clk 00:03:50]} {[%emt 00:01:57]} 33. Na5 {[%clk 00:09:10]} {[%emt 00:00:30]}
Rb6 {[%clk 00:04:15]} {[%emt 00:00:06]} 34. Ka3 {[%clk 00:07:24]} {[%emt
00:01:59]} Rb5 {[%clk 00:02:02]} {[%emt 00:02:59]} 35. Rxb5 {[%clk 00:05:17]}
{[%emt 00:02:37]} Nc2+ {[%clk 00:02:31]} {[%emt 00:00:01]} 36. Kb2 {[%clk
00:05:34]} {[%emt 00:00:13]} Nxd4 {[%clk 00:03:00]} {[%emt 00:00:02]} 37. Re5
{[%clk 00:03:00]} {[%emt 00:03:01]} Rd8 {[%clk 00:02:36]} {[%emt 00:00:56]} 38.
g3 {[%clk 00:02:59]} {[%emt 00:00:32]} Ne6 {[%clk 00:02:24]} {[%emt 00:00:42]}
39. Kc3 {[%clk 00:01:05]} {[%emt 00:02:24]} Kf6 {[%clk 00:02:18]} {[%emt
00:00:36]} 40. Re2 {[%clk 00:00:55]} {[%emt 00:00:33]} c5 {[%clk 00:01:11]}
{[%emt 00:01:43]} 41. Rd2 {[%clk 00:46:24]} {[%emt 00:04:59]} Ra8 {[%clk
00:48:17]} {[%emt 00:03:23]} 42. Nb7 {[%clk 00:45:01]} {[%emt 00:01:56]} Ke7
{[%clk 00:28:45]} {[%emt 00:20:01]} 43. Rd5 {[%clk 00:38:30]} {[%emt 00:07:00]}
Ra2 {[%clk 00:28:34]} {[%emt 00:00:43]} 44. Nxc5 {[%clk 00:38:03]} {[%emt
00:00:57]} Nxc5 {[%clk 00:13:18]} {[%emt 00:15:46]} 45. Rxc5 {[%clk 00:38:28]}
{[%emt 00:00:05]} Kd6 {[%clk 00:13:22]} {[%emt 00:00:27]} 46. b4 {[%clk
00:38:19]} {[%emt 00:00:38]} Rxf2 {[%clk 00:13:43]} {[%emt 00:00:09]} 47. Kb3
{[%clk 00:38:13]} {[%emt 00:00:37]} f5 {[%clk 00:07:28]} {[%emt 00:06:45]} 48.
Rc2 {[%clk 00:32:46]} {[%emt 00:05:57]} Rf1 {[%clk 00:07:50]} {[%emt 00:00:08]}
49. b5 {[%clk 00:31:48]} {[%emt 00:01:28]} Kd7 {[%clk 00:03:38]} {[%emt
00:04:42]} 50. Rc6 {[%clk 00:26:26]} {[%emt 00:05:51]} Rb1+ {[%clk 00:01:32]}
{[%emt 00:02:36]} 51. Ka4 {[%clk 00:26:48]} {[%emt 00:00:09]} Rg1 {[%clk
00:01:35]} {[%emt 00:00:21]} 52. Rc3 {[%clk 00:27:05]} {[%emt 00:00:19]} Ra1+
{[%clk 00:01:21]} {[%emt 00:00:44]} 53. Kb4 {[%clk 00:27:12]} {[%emt 00:00:23]}
Ra2 {[%clk 00:00:37]} {[%emt 00:01:13]} 54. b6 {[%clk 00:26:32]} {[%emt
00:01:10]} Kd6 {[%clk 00:00:39]} {[%emt 00:00:29]} 1-0

[Event "FIDE Grand Swiss 2023"]
[Site "Villa Marina, Douglas, Isle of Man, Isle Of Man"]
[Date "2023.11.05"]
[Round "11.29"]
[White "Shevchenko, Kirill"]
[Black "Mishra, Abhimanyu"]
[Result "1/2-1/2"]
[TimeControl "40/90 + 30 + 30s/move"]
[WhiteFideId "14129574"]
[BlackFideId "30920019"]
[WhiteElo "2671"]
[BlackElo "2592"]

1. e4 {[%clk 01:40:56]} {[%emt 00:00:03]} e6 {[%clk 01:40:56]} {[%emt
00:00:05]} 2. d4 {[%clk 01:41:21]} {[%emt 00:00:05]} d5 {[%clk 01:41:21]}
{[%emt 00:00:05]} 3. Nd2 {[%clk 01:41:45]} {[%emt 00:00:05]} c5 {[%clk
01:41:36]} {[%emt 00:00:15]} 4. Ngf3 {[%clk 01:42:09]} {[%emt 00:00:06]} cxd4
{[%clk 01:41:51]} {[%emt 00:00:16]} 5. Nxd4 {[%clk 01:42:34]} {[%emt 00:00:05]}
Nc6 {[%clk 01:41:54]} {[%emt 00:00:27]} 6. Bb5 {[%clk 01:42:56]} {[%emt
00:00:08]} Bd7 {[%clk 01:42:19]} {[%emt 00:00:05]} 7. Nxc6 {[%clk 01:43:20]}
{[%emt 00:00:05]} bxc6 {[%clk 01:42:43]} {[%emt 00:00:06]} 8. Bd3 {[%clk
01:43:47]} {[%emt 00:00:03]} Bd6 {[%clk 01:42:40]} {[%emt 00:00:33]} 9. Qe2
{[%clk 01:43:02]} {[%emt 00:01:16]} e5 {[%clk 01:41:48]} {[%emt 00:01:22]} 10.
O-O {[%clk 01:37:56]} {[%emt 00:05:35]} Qe7 {[%clk 01:41:44]} {[%emt 00:00:35]}
11. c4 {[%clk 01:32:32]} {[%emt 00:05:54]} d4 {[%clk 01:40:46]} {[%emt
00:01:28]} 12. f4 {[%clk 01:29:08]} {[%emt 00:03:54]} Nf6 {[%clk 01:39:40]}
{[%emt 00:01:36]} 13. c5 {[%clk 01:08:59]} {[%emt 00:20:39]} Bxc5 {[%clk
01:39:47]} {[%emt 00:00:23]} 14. Nc4 {[%clk 01:06:15]} {[%emt 00:03:14]} exf4
{[%clk 01:36:31]} {[%emt 00:03:46]} 15. Bxf4 {[%clk 01:02:44]} {[%emt
00:04:00]} Ng4 {[%clk 01:36:53]} {[%emt 00:00:09]} 16. Rac1 {[%clk 00:52:14]}
{[%emt 00:11:00]} O-O {[%clk 01:16:53]} {[%emt 00:20:31]} 17. e5 {[%clk
00:33:38]} {[%emt 00:19:05]} Ne3 {[%clk 01:10:07]} {[%emt 00:07:16]} 18. Nxe3
{[%clk 00:31:28]} {[%emt 00:02:40]} dxe3 {[%clk 01:10:31]} {[%emt 00:00:06]} 19.
Bxh7+ {[%clk 00:28:18]} {[%emt 00:03:39]} Kxh7 {[%clk 01:10:53]} {[%emt
00:00:08]} 20. Qc2+ {[%clk 00:28:46]} {[%emt 00:00:02]} Kg8 {[%clk 01:11:10]}
{[%emt 00:00:13]} 21. Qxc5 {[%clk 00:29:13]} {[%emt 00:00:03]} Qxc5 {[%clk
01:08:00]} {[%emt 00:03:40]} 22. Rxc5 {[%clk 00:29:41]} Be6 {[%clk 01:05:15]}
{[%emt 00:03:18]} 23. Bxe3 {[%clk 00:26:50]} {[%emt 00:03:21]} Bxa2 {[%clk
01:04:19]} {[%emt 00:01:26]} 24. Rxc6 {[%clk 00:27:03]} {[%emt 00:00:17]} a5
{[%clk 01:00:34]} {[%emt 00:04:14]} 25. Ra1 {[%clk 00:17:23]} {[%emt 00:10:11]}
Bb3 {[%clk 00:53:57]} {[%emt 00:07:07]} 26. Bc5 {[%clk 00:17:18]} {[%emt
00:00:35]} Rfb8 {[%clk 00:52:35]} {[%emt 00:01:52]} 27. Rc1 {[%clk 00:10:24]}
{[%emt 00:07:23]} Be6 {[%clk 00:47:24]} {[%emt 00:05:42]} 28. Ba3 {[%clk
00:08:42]} {[%emt 00:02:12]} Rb5 {[%clk 00:45:50]} {[%emt 00:02:04]} 29. R1c5
{[%clk 00:08:59]} {[%emt 00:00:12]} Rxc5 {[%clk 00:46:07]} {[%emt 00:00:15]} 30.
Rxc5 {[%clk 00:09:25]} {[%emt 00:00:03]} a4 {[%clk 00:45:57]} {[%emt 00:00:40]}
31. Rb5 {[%clk 00:06:16]} {[%emt 00:03:38]} Rc8 {[%clk 00:42:29]} {[%emt
00:03:58]} 32. Bc5 {[%clk 00:06:29]} {[%emt 00:00:17]} Rd8 {[%clk 00:42:51]}
{[%emt 00:00:09]} 33. Bd6 {[%clk 00:06:27]} {[%emt 00:00:32]} Rc8 {[%clk
00:43:16]} {[%emt 00:00:05]} 34. Bc5 {[%clk 00:04:06]} {[%emt 00:02:51]} Rd8
{[%clk 00:43:36]} {[%emt 00:00:10]} 1/2-1/2

[Event "FIDE Grand Swiss 2023"]
[Site "Villa Marina, Douglas, Isle of Man, Isle Of Man"]
[Date "2023.11.05"]
[Round "11.30"]
[White "Bluebaum, Matthias"]
[Black "Rodrigue-Lemieux, Shawn"]
[Result "1-0"]
[TimeControl "40/90 + 30 + 30s/move"]
[WhiteFideId "24651516"]
[BlackFideId "2620049"]
[WhiteElo "2668"]
[BlackElo "2488"]

1. Nf3 {[%clk 01:40:56]} {[%emt 00:00:02]} d5 {[%clk 01:40:47]} {[%emt
00:00:14]} 2. e3 {[%clk 01:41:21]} {[%emt 00:00:05]} Nf6 {[%clk 01:41:08]}
{[%emt 00:00:09]} 3. c4 {[%clk 01:41:48]} {[%emt 00:00:03]} e6 {[%clk
01:41:26]} {[%emt 00:00:12]} 4. Nc3 {[%clk 01:42:13]} {[%emt 00:00:05]} Be7
{[%clk 01:41:28]} {[%emt 00:00:28]} 5. b3 {[%clk 01:42:32]} {[%emt 00:00:11]}
O-O {[%clk 01:41:48]} {[%emt 00:00:10]} 6. Bb2 {[%clk 01:43:00]} {[%emt
00:00:02]} c5 {[%clk 01:41:21]} {[%emt 00:00:56]} 7. cxd5 {[%clk 01:43:06]}
{[%emt 00:00:25]} Nxd5 {[%clk 01:41:29]} {[%emt 00:00:22]} 8. Qc2 {[%clk
01:43:27]} {[%emt 00:00:09]} Nc6 {[%clk 01:41:10]} {[%emt 00:00:49]} 9. a3
{[%clk 01:43:32]} {[%emt 00:00:25]} b6 {[%clk 01:34:33]} {[%emt 00:07:07]} 10.
h4 {[%clk 01:43:07]} {[%emt 00:00:56]} f5 {[%clk 01:29:04]} {[%emt 00:05:59]}
11. Rd1 {[%clk 01:42:47]} {[%emt 00:00:49]} Bd7 {[%clk 01:20:26]} {[%emt
00:09:08]} 12. Bc4 {[%clk 01:38:22]} {[%emt 00:04:55]} Nc7 {[%clk 01:15:07]}
{[%emt 00:05:48]} 13. h5 {[%clk 01:33:03]} {[%emt 00:05:50]} h6 {[%clk
01:11:27]} {[%emt 00:04:09]} 14. d4 {[%clk 01:28:50]} {[%emt 00:04:44]} cxd4
{[%clk 01:05:42]} {[%emt 00:06:15]} 15. exd4 {[%clk 01:28:43]} {[%emt
00:00:38]} Na5 {[%clk 00:43:58]} {[%emt 00:22:14]} 16. Be2 {[%clk 01:27:45]}
{[%emt 00:01:27]} Rc8 {[%clk 00:43:30]} {[%emt 00:00:58]} 17. b4 {[%clk
01:25:11]} {[%emt 00:03:05]} Nb7 {[%clk 00:41:17]} {[%emt 00:02:43]} 18. Ne5
{[%clk 01:15:30]} {[%emt 00:10:11]} Bf6 {[%clk 00:38:26]} {[%emt 00:03:21]} 19.
Qb3 {[%clk 01:06:02]} {[%emt 00:09:58]} Nd6 {[%clk 00:38:45]} {[%emt 00:00:10]}
20. O-O {[%clk 01:05:12]} {[%emt 00:01:21]} b5 {[%clk 00:33:35]} {[%emt
00:05:39]} 21. Rfe1 {[%clk 01:01:33]} {[%emt 00:04:09]} Qe8 {[%clk 00:27:06]}
{[%emt 00:07:00]} 22. Ng6 {[%clk 00:57:19]} {[%emt 00:04:44]} Rf7 {[%clk
00:27:18]} {[%emt 00:00:17]} 23. Bf3 {[%clk 00:56:00]} {[%emt 00:01:50]} Nc4
{[%clk 00:26:16]} {[%emt 00:01:32]} 24. Bc1 {[%clk 00:56:26]} {[%emt 00:00:04]}
Na8 {[%clk 00:21:46]} {[%emt 00:05:00]} 25. Bf4 {[%clk 00:54:38]} {[%emt
00:02:19]} Nab6 {[%clk 00:22:14]} {[%emt 00:00:01]} 26. Bb7 {[%clk 00:51:43]}
{[%emt 00:03:26]} Bc6 {[%clk 00:22:22]} {[%emt 00:00:21]} 27. Bxc8 {[%clk
00:50:10]} {[%emt 00:02:04]} Qxc8 {[%clk 00:22:50]} 28. d5 {[%clk 00:48:43]}
{[%emt 00:01:57]} exd5 {[%clk 00:21:01]} {[%emt 00:02:19]} 29. Ne2 {[%clk
00:43:36]} {[%emt 00:05:37]} Nb2 {[%clk 00:19:16]} {[%emt 00:02:15]} 30. Be5
{[%clk 00:38:17]} {[%emt 00:05:49]} Nxd1 {[%clk 00:18:21]} {[%emt 00:01:25]} 31.
Bxf6 {[%clk 00:38:36]} {[%emt 00:00:11]} gxf6 {[%clk 00:12:48]} {[%emt
00:06:03]} 32. Nd4 {[%clk 00:37:53]} {[%emt 00:01:14]} Bd7 {[%clk 00:11:47]}
{[%emt 00:01:30]} 33. Qxd1 {[%clk 00:36:56]} {[%emt 00:01:27]} Kh7 {[%clk
00:11:05]} {[%emt 00:01:12]} 34. Ne7 {[%clk 00:35:11]} {[%emt 00:02:15]} Qc3
{[%clk 00:07:07]} {[%emt 00:04:28]} 35. Re3 {[%clk 00:31:06]} {[%emt 00:04:35]}
Qb2 {[%clk 00:07:35]} {[%emt 00:00:02]} 36. Ndxf5 {[%clk 00:29:23]} {[%emt
00:02:14]} Bxf5 {[%clk 00:06:38]} {[%emt 00:01:26]} 37. Nxf5 {[%clk 00:29:51]}
{[%emt 00:00:02]} Nc4 {[%clk 00:05:07]} {[%emt 00:02:01]} 38. Qxd5 {[%clk
00:27:30]} {[%emt 00:02:51]} Ne5 {[%clk 00:05:35]} {[%emt 00:00:02]} 39. Qe4
{[%clk 00:26:54]} {[%emt 00:01:06]} Rd7 {[%clk 00:04:53]} {[%emt 00:01:12]} 40.
Rg3 {[%clk 00:22:40]} {[%emt 00:04:44]} Qc1+ {[%clk 00:03:03]} {[%emt
00:02:20]} 41. Kh2 {[%clk 00:23:06]} {[%emt 00:00:04]} Qc4 {[%clk 00:03:11]}
{[%emt 00:00:22]} 42. Nd4+ {[%clk 00:19:23]} {[%emt 00:04:13]} Kh8 {[%clk
00:03:34]} {[%emt 00:00:07]} 43. Qf4 {[%clk 00:19:13]} {[%emt 00:00:40]} 1-0

[Event "FIDE Grand Swiss 2023"]
[Site "Villa Marina, Douglas, Isle of Man, Isle Of Man"]
[Date "2023.11.05"]
[Round "11.31"]
[White "Shirov, Alexei"]
[Black "Zhalmakhanov, Ramazan"]
[Result "1-0"]
[TimeControl "40/90 + 30 + 30s/move"]
[WhiteFideId "2209390"]
[BlackFideId "13706357"]
[WhiteElo "2655"]
[BlackElo "2447"]

1. e4 {[%clk 01:40:57]} {[%emt 00:00:02]} c5 {[%clk 01:40:50]} {[%emt
00:00:11]} 2. Nf3 {[%clk 01:41:22]} {[%emt 00:00:04]} g6 {[%clk 01:41:06]}
{[%emt 00:00:14]} 3. c3 {[%clk 01:41:34]} {[%emt 00:00:19]} d5 {[%clk
01:41:01]} {[%emt 00:00:36]} 4. e5 {[%clk 01:41:22]} {[%emt 00:00:41]} Nc6
{[%clk 01:37:33]} {[%emt 00:03:58]} 5. Bb5 {[%clk 01:36:49]} {[%emt 00:05:04]}
Bg4 {[%clk 01:32:46]} {[%emt 00:05:17]} 6. Bxc6+ {[%clk 01:33:33]} {[%emt
00:03:46]} bxc6 {[%clk 01:33:08]} {[%emt 00:00:08]} 7. O-O {[%clk 01:32:34]}
{[%emt 00:01:28]} Bg7 {[%clk 01:31:52]} {[%emt 00:01:47]} 8. Re1 {[%clk
01:30:04]} {[%emt 00:02:59]} Nh6 {[%clk 01:20:14]} {[%emt 00:12:08]} 9. d3
{[%clk 01:29:36]} {[%emt 00:00:58]} O-O {[%clk 01:20:21]} {[%emt 00:00:24]} 10.
Nbd2 {[%clk 01:29:40]} {[%emt 00:00:25]} f6 {[%clk 01:02:41]} {[%emt 00:18:10]}
11. h3 {[%clk 01:25:24]} {[%emt 00:04:46]} Bh5 {[%clk 00:57:00]} {[%emt
00:06:11]} 12. Qa4 {[%clk 01:06:40]} {[%emt 00:19:14]} Qc7 {[%clk 00:46:46]}
{[%emt 00:10:45]} 13. g4 {[%clk 00:55:55]} {[%emt 00:11:14]} Bxg4 {[%clk
00:36:15]} {[%emt 00:11:01]} 14. hxg4 {[%clk 00:56:19]} {[%emt 00:00:05]} fxe5
{[%clk 00:36:42]} {[%emt 00:00:04]} 15. Nh2 {[%clk 00:55:45]} {[%emt 00:01:04]}
e4 {[%clk 00:32:25]} {[%emt 00:04:48]} 16. Ndf1 {[%clk 00:49:42]} {[%emt
00:06:31]} exd3 {[%clk 00:30:11]} {[%emt 00:02:45]} 17. Re6 {[%clk 00:50:01]}
{[%emt 00:00:11]} Rac8 {[%clk 00:27:00]} {[%emt 00:03:41]} 18. Bd2 {[%clk
00:36:30]} {[%emt 00:14:01]} Nf7 {[%clk 00:21:48]} {[%emt 00:05:42]} 19. Rae1
{[%clk 00:36:53]} {[%emt 00:00:08]} Rfe8 {[%clk 00:20:40]} {[%emt 00:01:38]} 20.
c4 {[%clk 00:34:28]} {[%emt 00:02:55]} d4 {[%clk 00:15:18]} {[%emt 00:05:51]}
21. Qa3 {[%clk 00:31:04]} {[%emt 00:03:54]} Nd8 {[%clk 00:14:16]} {[%emt
00:01:32]} 22. R6e4 {[%clk 00:30:50]} {[%emt 00:00:43]} e5 {[%clk 00:14:18]}
{[%emt 00:00:30]} 23. Qxd3 {[%clk 00:28:27]} {[%emt 00:02:53]} Nf7 {[%clk
00:14:30]} {[%emt 00:00:18]} 24. Ng3 {[%clk 00:28:42]} {[%emt 00:00:14]} Qd7
{[%clk 00:14:19]} {[%emt 00:00:42]} 25. R4e2 {[%clk 00:25:51]} {[%emt
00:03:20]} Re6 {[%clk 00:13:12]} {[%emt 00:01:37]} 26. Ne4 {[%clk 00:26:01]}
{[%emt 00:00:20]} Qe7 {[%clk 00:13:28]} {[%emt 00:00:14]} 27. f4 {[%clk
00:21:46]} {[%emt 00:04:45]} 1-0

[Event "FIDE Grand Swiss 2023"]
[Site "Villa Marina, Douglas, Isle of Man, Isle Of Man"]
[Date "2023.11.05"]
[Round "11.32"]
[White "Pichot, Alan"]
[Black "Tari, Aryan"]
[Result "1-0"]
[TimeControl "40/90 + 30 + 30s/move"]
[WhiteFideId "110973"]
[BlackFideId "1510045"]
[WhiteElo "2650"]
[BlackElo "2619"]

1. e4 {[%clk 01:40:55]} {[%emt 00:00:04]} e5 {[%clk 01:40:53]} {[%emt
00:00:07]} 2. Nf3 {[%clk 01:41:16]} {[%emt 00:00:09]} Nc6 {[%clk 01:41:19]}
{[%emt 00:00:05]} 3. Bc4 {[%clk 01:41:31]} {[%emt 00:00:13]} Nf6 {[%clk
01:41:43]} {[%emt 00:00:08]} 4. d3 {[%clk 01:41:52]} {[%emt 00:00:09]} Bc5
{[%clk 01:42:06]} {[%emt 00:00:07]} 5. O-O {[%clk 01:41:48]} {[%emt 00:00:33]}
d6 {[%clk 01:42:18]} {[%emt 00:00:19]} 6. a4 {[%clk 01:41:23]} {[%emt
00:00:55]} O-O {[%clk 01:40:28]} {[%emt 00:02:20]} 7. h3 {[%clk 01:39:55]}
{[%emt 00:01:58]} h6 {[%clk 01:37:54]} {[%emt 00:03:04]} 8. Be3 {[%clk
01:38:17]} {[%emt 00:02:08]} Bxe3 {[%clk 01:34:27]} {[%emt 00:03:57]} 9. fxe3
{[%clk 01:38:39]} {[%emt 00:00:08]} Be6 {[%clk 01:33:13]} {[%emt 00:01:44]} 10.
Bxe6 {[%clk 01:37:50]} {[%emt 00:01:18]} fxe6 {[%clk 01:33:31]} {[%emt
00:00:12]} 11. Nbd2 {[%clk 01:37:18]} {[%emt 00:01:03]} d5 {[%clk 01:24:45]}
{[%emt 00:09:16]} 12. c3 {[%clk 01:35:40]} {[%emt 00:02:07]} Qd6 {[%clk
01:10:21]} {[%emt 00:14:55]} 13. Qb3 {[%clk 01:31:22]} {[%emt 00:04:47]} Kh8
{[%clk 01:05:06]} {[%emt 00:05:46]} 14. Rf2 {[%clk 01:26:51]} {[%emt 00:05:01]}
b6 {[%emt 00:11:11]} 15. Raf1 {[%clk 01:23:10]} Rae8 {[%clk 00:55:13]} {[%emt
00:03:53]} 16. g4 {[%clk 01:16:13]} {[%emt 00:07:27]} dxe4 {[%clk 00:46:10]}
{[%emt 00:09:33]} 17. dxe4 {[%clk 01:15:53]} {[%emt 00:00:50]} a6 {[%clk
00:39:55]} {[%emt 00:06:45]} 18. Qc4 {[%clk 01:07:42]} {[%emt 00:08:41]} Nb8
{[%clk 00:39:00]} {[%emt 00:01:25]} 19. g5 {[%clk 00:59:04]} {[%emt 00:09:07]}
hxg5 {[%clk 00:31:33]} {[%emt 00:07:58]} 20. Nxg5 {[%clk 00:59:18]} {[%emt
00:00:16]} Kg8 {[%clk 00:31:44]} {[%emt 00:00:19]} 21. Ndf3 {[%clk 00:56:54]}
{[%emt 00:02:54]} Qc6 {[%clk 00:26:59]} {[%emt 00:05:15]} 22. Qe2 {[%clk
00:40:14]} {[%emt 00:17:10]} Nxe4 {[%clk 00:25:03]} {[%emt 00:02:26]} 23. Nxe5
{[%clk 00:39:38]} {[%emt 00:01:05]} Rxf2 {[%clk 00:23:20]} {[%emt 00:02:13]} 24.
Rxf2 {[%clk 00:39:55]} {[%emt 00:00:13]} Ng3 {[%clk 00:21:32]} {[%emt
00:02:19]} 25. Qf3 {[%clk 00:39:44]} {[%emt 00:00:41]} Qxf3 {[%clk 00:21:56]}
{[%emt 00:00:05]} 26. Rxf3 {[%clk 00:38:52]} {[%emt 00:01:22]} Nf5 {[%clk
00:21:58]} {[%emt 00:00:29]} 27. e4 {[%clk 00:35:25]} {[%emt 00:03:57]} Nd6
{[%clk 00:21:43]} {[%emt 00:00:44]} 28. b4 {[%clk 00:31:54]} {[%emt 00:04:02]}
Rf8 {[%clk 00:20:43]} {[%emt 00:01:30]} 29. Kf2 {[%clk 00:28:40]} {[%emt
00:03:43]} Rf6 {[%clk 00:20:14]} {[%emt 00:01:00]} 30. Ke3 {[%clk 00:21:11]}
{[%emt 00:08:00]} a5 {[%clk 00:20:43]} 31. bxa5 {[%clk 00:15:24]} {[%emt
00:06:16]} bxa5 {[%clk 00:21:06]} {[%emt 00:00:06]} 32. Kd4 {[%clk 00:14:46]}
{[%emt 00:01:08]} Na6 {[%clk 00:19:07]} {[%emt 00:02:30]} 33. Nc6 {[%clk
00:14:16]} {[%emt 00:00:59]} e5+ {[%clk 00:11:40]} {[%emt 00:07:58]} 34. Nxe5
{[%clk 00:11:04]} {[%emt 00:03:41]} Nb7 {[%clk 00:11:53]} {[%emt 00:00:18]} 35.
Nc4 {[%clk 00:06:09]} {[%emt 00:05:25]} Nbc5 {[%clk 00:09:38]} {[%emt
00:02:45]} 36. Rxf6 {[%clk 00:04:16]} {[%emt 00:02:22]} gxf6 {[%clk 00:10:07]}
{[%emt 00:00:02]} 37. Nf3 {[%clk 00:04:38]} {[%emt 00:00:07]} Nxa4 {[%clk
00:09:25]} {[%emt 00:01:13]} 38. Nxa5 {[%clk 00:05:00]} {[%emt 00:00:08]} N6c5
{[%clk 00:08:56]} {[%emt 00:00:59]} 39. c4 {[%clk 00:02:46]} {[%emt 00:02:44]}
Ne6+ {[%clk 00:07:38]} {[%emt 00:01:48]} 40. Ke3 {[%clk 00:02:37]} {[%emt
00:00:38]} Nac5 {[%clk 00:04:13]} {[%emt 00:03:55]} 41. Nc6 {[%clk 00:47:32]}
{[%emt 00:05:35]} Kf7 {[%clk 00:51:35]} {[%emt 00:03:09]} 42. h4 {[%clk
00:41:19]} {[%emt 00:06:42]} Ng7 {[%clk 00:36:37]} {[%emt 00:15:29]} 43. Nb4
{[%clk 00:32:42]} {[%emt 00:09:07]} f5 {[%clk 00:29:19]} {[%emt 00:07:48]} 44.
e5 {[%clk 00:31:40]} {[%emt 00:01:32]} Nce6 {[%clk 00:27:50]} {[%emt 00:02:00]}
45. Nd5 {[%clk 00:28:57]} {[%emt 00:03:12]} c5 {[%clk 00:19:29]} {[%emt
00:08:51]} 46. Nf4 {[%clk 00:23:35]} {[%emt 00:05:52]} Nxf4 {[%clk 00:16:24]}
{[%emt 00:03:35]} 47. Ng5+ {[%clk 00:23:25]} {[%emt 00:00:40]} Kg6 {[%clk
00:16:44]} {[%emt 00:00:09]} 48. Kxf4 {[%clk 00:23:50]} {[%emt 00:00:05]} Nh5+
{[%clk 00:16:19]} {[%emt 00:00:56]} 49. Kf3 {[%clk 00:24:04]} {[%emt 00:00:15]}
Ng7 {[%clk 00:09:44]} {[%emt 00:07:05]} 50. Nh3 {[%clk 00:24:11]} {[%emt
00:00:24]} f4 {[%clk 00:09:09]} {[%emt 00:01:05]} 51. Kg4 {[%clk 00:22:10]} 1-0